bitfinex/quotes_ETHUSD_20220106
["timestamp","ask_amount","ask_price","bid_price","bid_amount"]
[1641471229288,0.00113685,3339.3,3338.2,0.00511581]
[1641471229490,1.97965776,3339.0,3338.1,0.00568423]
[1641471229889,3.77774776,3339.0,3338.1,0.00568423]
[1641471230193,0.74905,3338.9,3338.1,0.00568423]
[1641471230590,0.74909,3338.6,3338.1,0.00568423]
[1641471230792,0.74905,3338.9,3338.1,0.00568423]
[1641471230990,0.74905,3338.9,3338.0,0.00625265]
[1641471231794,0.74903,3338.8,3338.0,0.00625265]
[1641471232594,0.69903,3338.8,3338.0,0.00625265]
[1641471232796,0.69903,3338.8,3338.1,2.06573324]
[1641471233257,0.69903,3338.8,3338.2,0.00511581]
[1641471233655,0.74905,3338.9,3338.2,0.00511581]
[1641471233656,1.4981,3338.6,3338.2,0.00511581]
[1641471233855,1.4981,3338.6,3338.3,0.00083881]
[1641471234056,1.4981,3338.6,3338.3,2.06657205]
[1641471234257,1.4981,3338.6,3338.4,0.00397896]
[1641471235658,0.74908,3338.6,3338.5,2.06573324]
[1641471236058,0.74908,3338.6,3338.5,2.06914378]
[1641471236257,0.74908,3338.6,3338.5,0.00341054]
[1641471236659,0.74908,3338.6,3338.4,0.00397896]
[1641471237103,0.74908,3338.6,3338.5,2.06573324]
[1641471237104,0.74901,3338.6,3338.5,2.06573324]
[1641471237503,1.49803,3338.7,3338.5,2.06914378]
[1641471237907,1.49803,3338.7,3338.5,0.00341054]
[1641471238703,1.49803,3338.7,3338.6,2.06573324]
[1641471239705,1.49803,3338.7,3338.4,0.00397896]
[1641471240310,1.49803,3338.7,3338.5,2.06573324]
[1641471241154,1.49803,3338.7,3338.4,0.00397896]
[1641471241855,0.74906,3338.6,3338.4,0.00397896]
[1641471242555,0.74906,3338.6,3338.5,2.07325286]
[1641471242954,0.74906,3338.6,3338.5,2.0766634]
[1641471243556,5.79906,3338.6,3338.5,2.0766634]
[1641471243756,0.74906,3338.6,3338.5,2.0766634]
[1641471244398,2.24712,3338.7,3338.5,2.0766634]
[1641471244399,1.49803,3338.7,3338.5,2.0766634]
[1641471244599,1.49803,3338.7,3338.5,2.07749467]
[1641471245502,1.49803,3338.7,3338.6,2.07325286]
[1641471245703,0.74901,3338.9,3338.6,2.07325286]
[1641471246103,0.74901,3338.9,3338.7,0.00227369]
[1641471247504,0.74901,3338.9,3338.8,1.16180756]
[1641471247710,6.49308725,3339.3,3338.8,1.16180756]
[1641471247711,4.99507685,3339.3,3338.8,1.16180756]
[1641471247902,4.99507685,3339.3,3339.2,1.74304355]
[1641471247903,5.74394685,3339.3,3339.2,1.74304355]
[1641471248162,4.99507685,3339.3,3338.9,0.00113684]
[1641471249762,4.99507685,3339.3,3339.1,2.13211301]
[1641471249963,4.99507685,3339.3,3338.9,2.06164621]
[1641471252212,1.0,3339.2,3338.9,2.06164621]
[1641471252911,1.3,3339.2,3338.9,2.06164621]
[1641471253111,12.0,3339.0,3338.9,2.06164621]
[1641471253311,6.95,3338.9,3338.5,1.12592245]
[1641471253512,0.43,3338.8,3338.5,1.09042245]
[1641471253716,0.43,3338.8,3338.6,0.00170527]
[1641471254112,0.43,3338.8,3338.3,0.00341054]
[1641471254310,0.74918,3338.6,3338.3,0.00341054]
[1641471254510,1.49836,3338.6,3338.3,0.00341054]
[1641471254912,0.74919,3338.4,3338.3,0.00341054]
[1641471255647,0.74919,3338.4,3338.1,0.00454739]
[1641471255843,0.74917,3338.3,3337.8,0.00625266]
[1641471256046,1.49835,3338.3,3337.8,0.00625266]
[1641471256643,1.49835,3338.3,3337.6,0.00738951]
[1641471257043,1.49835,3338.3,3337.9,0.00081373]
[1641471257444,1.4983763,3338.5,3338.0,0.00511581]
[1641471258852,1.7983763,3338.5,3338.0,0.00511581]
[1641471259910,1.4983763,3338.5,3338.0,0.00511581]
[1641471260115,0.74918,3338.5,3338.0,0.00511581]
[1641471261112,0.7491117,3338.4,3338.0,0.00511581]
[1641471263351,0.7492,3338.2,3338.0,0.00511581]
[1641471264853,1.4984,3338.2,3338.0,0.00511581]
[1641471265048,0.7492132,3338.1,3338.0,0.00511581]
[1641471266556,1.49839,3338.2,3338.0,0.00511581]
[1641471266799,0.74919,3338.2,3338.0,0.00511581]
[1641471267600,0.74919,3338.2,3338.1,0.00080622]
[1641471268001,0.74919,3338.2,3338.1,0.00535361]
[1641471269403,0.74919,3338.2,3338.1,1.13581933]
[1641471271050,0.74919,3338.2,3338.1,0.00535361]
[1641471273654,0.3,3338.2,3338.1,0.00535361]
[1641471273855,2.9965652,3338.3,3338.1,0.00535361]
[1641471274303,2.9965652,3338.3,3338.2,0.00397897]
[1641471275000,9.0957352,3338.3,3338.2,0.00397897]
[1641471275198,3.7457352,3338.3,3338.2,0.00397897]
[1641471276301,4.27995727,3338.3,3338.2,1.98267912]
[1641471278751,4.57995727,3338.3,3338.2,1.98267912]
[1641471279849,4.27995727,3338.3,3338.2,1.98267912]
[1641471280949,4.27995727,3338.3,3338.0,0.15]
[1641471280950,3.8,3338.2,3338.0,0.15]
[1641471281155,16.2259091,3338.1,3338.0,0.15]
[1641471281355,16.2259091,3338.1,3337.6,1.13046572]
[1641471281356,9.45,3338.0,3337.6,1.13046572]
[1641471281551,11.74876,3337.8,3337.4,1.499406]
[1641471281809,1.7521,3337.8,3337.4,1.499406]
[1641471282013,12.0,3337.5,3337.4,1.499406]
[1641471282211,11.45,3337.4,3337.1,2.74036848]
[1641471282511,11.45,3337.4,3336.6,2.25290351]
[1641471282512,8.1,3337.2,3336.7,2.74036848]
[1641471282713,1.92912,3337.1,3336.7,2.74036848]
[1641471282910,1.92912,3337.1,3336.8,0.0022737]
[1641471283112,10.45,3337.0,3336.3,3.0184545]
[1641471283311,10.45,3337.0,3336.3,2.9517545]
[1641471283312,0.44259391,3336.9,3336.3,2.9517545]
[1641471283511,18.89259391,3336.9,3336.4,0.00227369]
[1641471284116,1.43,3336.9,3336.0,0.00454738]
[1641471284313,0.74954,3336.8,3336.0,0.00454738]
[1641471284516,1.0495008,3336.8,3336.0,0.00454738]
[1641471284711,2.05069684,3337.0,3336.0,0.00454738]
[1641471284712,0.75069684,3337.0,3336.0,0.00454738]
[1641471284915,0.00113684,3337.0,3336.0,0.00454738]
[1641471286857,0.74943,3336.9,3336.0,0.00454738]
[1641471287059,0.00113684,3337.0,3336.0,0.00454738]
[1641471288257,0.00113684,3337.0,3335.3,1.2456]
[1641471288656,0.00511581,3336.9,3336.1,3.38980196]
[1641471289058,0.00454738,3336.8,3336.1,0.00103831]
[1641471289502,0.00397896,3336.7,3336.1,0.00103831]
[1641471289806,0.00341054,3336.6,3336.1,0.00103831]
[1641471290203,0.00284211,3336.5,3336.1,0.00103831]
[1641471290604,0.00227369,3336.4,3336.1,0.00103831]
[1641471290902,0.00170527,3336.3,3336.1,0.00103831]
[1641471291306,0.00113684,3336.2,3336.1,0.00103831]
[1641471292110,0.00113684,3336.2,3336.1,5.20103831]
[1641471292311,0.00113684,3336.2,3336.1,0.00103831]
[1641471298203,0.75079684,3336.2,3336.1,0.00103831]
[1641471298606,2.31399684,3336.2,3336.1,0.00103831]
[1641471299005,8.21399684,3336.2,3336.1,0.00103831]
[1641471299206,0.7498,3335.6,3335.4,1.12435203]
[1641471299412,0.7498,3335.6,3335.4,0.00341054]
[1641471299614,1.4996211,3335.6,3335.5,0.00284212]
[1641471299808,0.7498211,3335.6,3335.2,0.00454739]
[1641471300208,0.74984,3335.5,3335.2,0.00454739]
[1641471300411,1.49957,3335.5,3335.2,0.00454739]
[1641471300660,0.74976,3335.5,3335.2,0.00454739]
[1641471300859,0.74982,3335.6,3335.2,0.00454739]
[1641471301060,0.00113684,3336.2,3334.9,0.00625266]
[1641471301258,0.00113684,3336.2,3334.9,0.43625266]
[1641471301459,0.00113684,3336.2,3336.0,3.18495839]
[1641471301660,0.00113684,3336.2,3336.0,1.06219041]
[1641471301957,0.00113684,3336.2,3335.4,1.0]
[1641471302261,0.00113684,3336.2,3335.5,0.00284212]
[1641471302858,0.75065684,3336.2,3335.5,0.00284212]
[1641471303059,0.75065684,3336.2,3335.5,2.02871767]
[1641471303257,0.75065684,3336.2,3335.5,0.00284212]
[1641471303458,0.75065684,3336.2,3335.6,0.0022737]
[1641471303658,0.75065684,3336.2,3335.5,0.00284212]
[1641471304311,0.75065684,3336.2,3335.5,1.0580974]
[1641471304711,0.75065684,3336.2,3335.6,0.0022737]
[1641471307012,0.75065684,3336.2,3335.6,1.05752898]
[1641471307213,0.75065684,3336.2,3335.7,2.01173547]
[1641471307412,0.75065684,3336.2,3335.7,0.00170527]
[1641471307613,0.75065684,3336.2,3335.8,0.00113685]
[1641471307817,0.75065684,3336.2,3335.7,0.00170527]
[1641471308056,0.75065684,3336.2,3335.8,0.00113685]
[1641471308256,0.75065684,3336.2,3335.8,0.00101269]
[1641471309458,0.75065684,3336.2,3336.0,1.32075258]
[1641471310560,0.75065684,3336.2,3336.1,1.05525528]
[1641471310959,1.05065684,3336.2,3336.1,1.05525528]
[1641471314508,1.03191806,3336.2,3336.1,1.05525528]
[1641471314710,1.03191806,3336.2,3336.1,2.37600786]
[1641471315765,0.73191806,3336.2,3336.1,1.32075258]
[1641471316167,0.00113684,3336.2,3336.1,1.32075258]
[1641471316765,0.00113684,3336.2,3336.1,7.37075258]
[1641471317168,4.99394,3336.8,3336.2,11.95]
[1641471317169,0.98637684,3336.8,3336.2,11.95]
[1641471317365,0.98637684,3336.8,3336.3,2.12087442]
[1641471317566,0.98637684,3336.8,3336.4,1.42418734]
[1641471317767,0.00284212,3336.7,3336.4,1.42418734]
[1641471318071,0.05360437,3337.3,3336.5,11.95]
[1641471318266,4.37e-06,3337.3,3336.7,11.95]
[1641471318471,0.00284212,3337.2,3336.7,11.95]
[1641471318666,0.00284212,3337.2,3336.8,1.0]
[1641471318867,4.37e-06,3337.3,3336.8,1.0]
[1641471318868,0.00227369,3337.1,3336.8,1.0]
[1641471319066,0.00227369,3337.1,3336.9,0.70639994]
[1641471319067,7.369e-05,3337.1,3336.9,0.70639994]
[1641471319307,1.1329743,3338.2,3337.0,2.84888066]
[1641471319508,1.1329743,3338.2,3338.0,1.01475149]
[1641471319708,1.1329743,3338.2,3338.0,4.16475149]
[1641471319709,0.00575793,3338.1,3338.0,4.16475149]
[1641471319908,0.00575793,3338.1,3338.0,1.01475149]
[1641471321619,0.00575793,3338.1,3338.0,3.07110755]
[1641471322709,0.00575793,3338.1,3338.0,1.01475149]
[1641471323156,0.00575793,3338.1,3338.0,2.58436677]
[1641471323361,1.30282407,3338.1,3338.0,1.01475149]
[1641471324758,1.30282407,3338.1,3338.0,2.27342807]
[1641471324958,1.30282407,3338.1,3338.0,2.93380436]
[1641471325158,1.30282407,3338.1,3338.0,3.59418065]
[1641471329026,0.00575793,3338.1,3338.0,2.33550407]
[1641471331052,0.00575793,3338.1,3338.0,1.32075258]
[1641471331857,1.56439999,3338.1,3338.0,1.32075258]
[1641471333659,12.69537747,3338.1,3338.0,1.32075258]
[1641471333863,11.95,3338.0,3336.9,0.00106315]
[1641471334065,3.26047758,3337.9,3336.9,0.00106315]
[1641471334322,0.01220474,3337.8,3336.9,0.00106315]
[1641471334510,0.43,3337.7,3336.9,0.00106315]
[1641471334710,0.43348423,3337.7,3336.9,0.00106315]
[1641471334912,0.00291581,3337.6,3336.9,0.00106315]
[1641471335112,0.00291581,3337.6,3336.1,2.48995945]
[1641471335113,1.89877281,3337.2,3336.6,0.00276842]
[1641471335312,0.74952,3337.1,3336.2,0.00504212]
[1641471335613,0.3,3337.0,3336.2,0.00504212]
[1641471335811,0.3,3337.0,3336.0,6.08963228]
[1641471336012,0.00397897,3336.9,3336.2,1.26367069]
[1641471336413,0.75289784,3336.8,3336.2,2.68483985]
[1641471336613,0.75289784,3336.8,3336.2,2.62483985]
[1641471336814,0.00284212,3336.7,3336.2,1.42116916]
[1641471337011,0.00284212,3336.7,3335.7,2.35634149]
[1641471337212,0.0022737,3336.6,3335.7,1.12094149]
[1641471337414,0.0022737,3336.6,3335.8,0.00227369]
[1641471337613,0.00170527,3336.5,3335.8,0.00227369]
[1641471338058,0.75062685,3336.4,3335.8,1.09290773]
[1641471338460,0.74949,3336.4,3335.9,0.00170527]
[1641471339462,1.499,3336.4,3335.9,0.00170527]
[1641471339762,1.499,3336.4,3335.7,0.00284211]
[1641471339963,0.74951,3336.4,3335.7,0.00284211]
[1641471340169,0.00284212,3336.7,3335.8,0.74944]
[1641471340364,0.00284212,3336.7,3336.0,1.11026309]
[1641471340565,0.0022737,3336.6,3336.0,1.11026309]
[1641471340970,0.00170527,3336.5,3336.0,1.11026309]
[1641471341366,0.00113685,3336.4,3336.0,1.11026309]
[1641471341568,0.00113685,3336.4,3336.0,1.85967309]
[1641471341815,0.00170527,3336.5,3336.0,1.85967309]
[1641471342019,0.00170527,3336.5,3336.0,2.58967309]
[1641471342217,0.00113685,3336.4,3336.0,2.58967309]
[1641471342417,0.00113685,3336.4,3336.1,1.0]
[1641471342616,0.00795793,3337.6,3336.1,1.0]
[1641471342819,0.00795793,3337.6,3336.6,1.90475383]
[1641471343015,0.00738951,3337.5,3336.7,0.74924]
[1641471343415,0.00682108,3337.4,3336.7,0.74924]
[1641471343619,0.00682108,3337.4,3336.4,1.49848]
[1641471343818,0.01255819,3336.5,3336.2,1.12094149]
[1641471344018,0.98615819,3336.5,3336.2,1.12094149]
[1641471344220,0.00113685,3336.4,3336.2,1.12094149]
[1641471344417,0.00113685,3336.4,3335.9,0.00170527]
[1641471344418,0.00113685,3336.4,3336.1,1.12094149]
[1641471345417,0.00113685,3336.4,3336.2,0.00096773]
[1641471345866,1.50024685,3336.4,3336.2,0.00096773]
[1641471347768,0.75069685,3336.4,3336.2,0.00096773]
[1641471347966,0.00113685,3336.4,3336.2,0.00096773]
[1641471349304,0.00113685,3336.4,3336.2,1.18033773]
[1641471349511,0.00113685,3336.4,3336.2,1.48033773]
[1641471349706,0.00113685,3336.4,3336.2,2.48033773]
[1641471349906,0.00113685,3336.4,3336.2,1.48033773]
[1641471350106,0.00113685,3336.4,3336.2,1.18033773]
[1641471350507,0.00113685,3336.4,3336.3,11.12094149]
[1641471350910,0.01275555,3337.6,3337.1,0.74818315]
[1641471351109,1.49865,3337.8,3337.1,0.74818315]
[1641471351309,0.3,3337.6,3337.1,0.74818315]
[1641471351612,0.3,3337.6,3337.3,0.7493]
[1641471351613,0.00625266,3337.5,3337.3,0.7493]
[1641471352012,0.00568423,3337.4,3337.3,0.7493]
[1641471353061,0.00568423,3337.4,3337.0,1.49854]
[1641471353264,0.00568423,3337.4,3336.7,2.55612711]
[1641471353461,0.3,3337.6,3336.7,1.80671711]
[1641471353462,0.00511581,3337.3,3336.7,1.80671711]
[1641471353663,0.00511581,3337.3,3336.6,1.55197464]
[1641471353862,0.00511581,3337.3,3336.6,0.05324464]
[1641471353863,0.00454739,3337.2,3336.6,0.05324464]
[1641471354262,0.00397896,3337.1,3336.6,0.05324464]
[1641471354665,0.00341054,3337.0,3336.6,0.05324464]
[1641471355064,0.00284212,3336.9,3336.6,0.05324464]
[1641471355264,0.00284212,3336.9,3336.5,0.74948]
[1641471355466,0.00227369,3336.8,3336.5,0.74948]
[1641471355670,0.00227369,3336.8,3336.3,1.49888]
[1641471355966,0.00170527,3336.7,3336.6,0.00090037]
[1641471357811,0.00170527,3336.7,3336.6,1.29147916]
[1641471358611,0.00170527,3336.7,3336.6,0.00090037]
[1641471359818,0.00170527,3336.7,3336.6,1.291561]
[1641471360214,0.00170527,3336.7,3336.6,13.340831]
[1641471360656,0.00170527,3336.7,3336.6,15.006631]
[1641471360856,1.5106324,3338.0,3337.5,1.49824]
[1641471360857,1.22477613,3337.6,3337.5,1.49824]
[1641471361058,1.22477613,3337.6,3337.5,14.81416484]
[1641471361260,1.22989194,3337.6,3337.5,14.81416484]
[1641471361459,1.22989194,3337.6,3337.5,3.86416484]
[1641471361860,0.00511581,3337.6,3337.5,5.65962106]
[1641471362258,0.00511581,3337.6,3337.5,12.40962106]
[1641471363065,1.1329743,3338.7,3338.5,0.7488592]
[1641471363263,1.1329743,3338.7,3338.6,2.99825663]
[1641471364316,1.19718175,3338.7,3338.6,3.68305663]
[1641471364818,1.19718175,3338.7,3338.6,4.68305663]
[1641471365215,1.19718175,3338.7,3338.6,12.03305663]
[1641471365422,2.26594861,3339.5,3338.7,11.95]
[1641471365423,1.1329743,3339.3,3338.7,11.95]
[1641471365619,1.1329743,3339.3,3339.1,0.7486679]
[1641471366615,1.1329743,3339.3,3339.0,2.6671657]
[1641471366817,1.1329743,3339.7,3339.0,0.74863]
[1641471367017,1.1329743,3339.7,3338.9,1.49726]
[1641471367215,0.01023162,3339.4,3338.9,1.49726]
[1641471367619,0.0096632,3339.3,3338.9,1.49726]
[1641471367816,0.0096632,3339.3,3339.0,1.49766]
[1641471368067,1.8818143,3339.7,3339.0,1.49766]
[1641471368068,0.00909478,3339.2,3339.0,1.49766]
[1641471368468,0.00852635,3339.1,3339.0,1.49766]
[1641471368867,0.00852635,3339.1,3339.0,2.2464421]
[1641471369270,0.00852635,3339.1,3339.0,6.5964421]
[1641471369666,0.00852635,3339.1,3339.0,2.2464421]
[1641471373909,0.00852635,3339.1,3339.0,14.9794421]
[1641471374217,0.00852635,3339.1,3339.0,17.0280721]
[1641471374413,1.1329743,3340.0,3339.1,11.95]
[1641471374610,1.1329743,3340.0,3339.7,1.27543293]
[1641471374918,1.5106324,3340.2,3339.8,0.9456366]
[1641471375112,1.12865563,3340.4,3339.9,2.09370482]
[1641471375317,0.00113685,3340.1,3339.9,2.09370482]
[1641471375772,0.00113685,3340.1,3339.9,3.59067482]
[1641471376371,0.00113685,3340.1,3339.9,4.33917732]
[1641471376772,1.5106324,3340.9,3340.0,6.8]
[1641471376972,1.5106324,3340.9,3340.8,1.23326245]
[1641471377172,1.5106324,3340.9,3340.8,2.02276245]
[1641471377374,1.5106324,3340.9,3340.8,4.1121525]
[1641471377674,1.50485092,3341.1,3340.8,4.4121525]
[1641471377974,1.50485092,3341.1,3341.0,1.71100942]
[1641471377975,1.51053515,3341.1,3341.0,1.71100942]
[1641471378172,2.26594861,3341.4,3341.0,2.01100942]
[1641471378372,2.26594861,3341.4,3341.2,0.7481273]
[1641471378572,3.7556002,3342.1,3341.4,4.95]
[1641471378874,3.7556002,3342.1,3341.3,2.83342116]
[1641471379076,0.00170527,3341.4,3341.3,5.93342116]
[1641471379315,2.25623838,3342.4,3341.3,4.32971116]
[1641471379506,2.25623838,3342.4,3341.3,5.32971116]
[1641471379708,0.00170527,3341.7,3341.5,1.4961962]
[1641471379908,0.00170527,3341.7,3341.5,1.6811962]
[1641471380109,0.00113685,3341.6,3341.5,1.6811962]
[1641471380311,0.00113685,3341.6,3341.5,15.03647127]
[1641471380512,0.00113685,3341.6,3341.5,2.44027507]
[1641471380912,8.07894059,3343.0,3342.7,1.16509292]
[1641471381118,8.07894059,3343.0,3342.8,1.9822356]
[1641471381314,0.0073895,3342.9,3342.3,0.2441]
[1641471381518,0.0073895,3342.9,3342.3,0.99218]
[1641471381713,0.00682108,3342.8,3342.3,0.99218]
[1641471382214,0.00625266,3342.7,3341.8,2.16098229]
[1641471382614,0.00568423,3342.6,3341.8,2.16098229]
[1641471383066,0.00511581,3342.5,3342.0,0.74814]
[1641471383464,0.00454739,3342.4,3342.0,0.74814]
[1641471383865,0.00397896,3342.3,3342.0,0.74814]
[1641471384366,0.00341054,3342.2,3341.8,3.15861417]
[1641471384769,0.00284212,3342.1,3341.8,3.15861417]
[1641471385166,0.00227369,3342.0,3341.8,3.15861417]
[1641471385369,0.00227369,3342.0,3341.8,2.16098229]
[1641471385674,6.17,3343.0,3341.8,2.16098229]
[1641471385675,0.00170527,3341.9,3341.8,2.16098229]
[1641471387904,0.00170527,3341.9,3341.7,1.49625]
[1641471388106,0.00170527,3341.9,3341.6,1.49632]
[1641471388309,0.00113685,3341.8,3341.2,1.49646]
[1641471388507,0.00113685,3341.8,3341.1,0.05380642]
[1641471388804,0.43,3342.5,3341.3,0.00170527]
[1641471389006,0.43,3342.5,3341.3,2.15855937]
[1641471389206,0.00454739,3342.4,3341.3,2.15855937]
[1641471389407,0.00454739,3342.4,3341.4,0.00113685]
[1641471389606,0.00397896,3342.3,3341.4,0.00113685]
[1641471389808,0.75236896,3342.3,3341.4,0.00113685]
[1641471390010,0.00341054,3342.2,3341.4,0.00113685]
[1641471390409,0.00284212,3342.1,3341.4,0.00113685]
[1641471390868,0.74839,3342.3,3341.4,0.00113685]
[1641471390869,0.00227369,3342.0,3341.4,0.00113685]
[1641471391261,0.00170527,3341.9,3341.4,0.00113685]
[1641471391663,0.00113685,3341.8,3341.4,0.00113685]
[1641471392160,0.00397896,3342.3,3341.4,0.00113685]
[1641471392561,0.00341054,3342.2,3341.7,0.74821]
[1641471392963,0.00284212,3342.1,3341.7,0.74821]
[1641471393364,0.00227369,3342.0,3341.7,0.74821]
[1641471393762,0.00170527,3341.9,3341.7,0.74821]
[1641471394162,0.00113685,3341.8,3341.7,0.74821]
[1641471394413,0.00113685,3341.8,3341.6,1.49634]
[1641471395711,0.00113685,3341.8,3341.4,0.00113685]
[1641471399166,0.00113685,3341.8,3341.5,0.7483]
[1641471399364,0.00113685,3341.8,3341.6,1.49639]
[1641471399868,0.00113685,3341.8,3341.7,14.19548944]
[1641471400067,0.00113685,3341.8,3341.7,14.94356944]
[1641471400268,0.00113685,3341.8,3341.7,15.94356944]
[1641471400468,0.00113685,3341.8,3341.7,14.94356944]
[1641471401070,0.00113685,3341.8,3341.7,15.94356944]
[1641471401476,0.23920334,3343.3,3343.0,1.19640745]
[1641471401667,0.23920334,3343.3,3343.0,1.94435745]
[1641471401913,0.00795793,3343.2,3343.0,1.94435745]
[1641471402117,0.00796127,3343.3,3343.1,8.15]
[1641471402318,0.00796127,3343.3,3343.2,6.68]
[1641471402513,0.6761207,3343.5,3343.3,1.8574438]
[1641471402715,0.6761207,3343.5,3343.3,2.2874438]
[1641471402914,0.00113684,3343.4,3343.3,2.5874438]
[1641471404416,0.00113684,3343.4,3343.3,2.2874438]
[1641471404615,0.00113684,3343.4,3343.1,2.24308]
[1641471404820,0.00113684,3343.4,3343.0,0.74795]
[1641471406662,0.00113684,3343.4,3342.8,1.49579]
[1641471406862,0.00113684,3343.4,3342.5,1.03256525]
[1641471407061,0.00113684,3343.4,3342.9,0.00170528]
[1641471407259,0.00113684,3343.4,3342.5,1.03256525]
[1641471407260,0.00113684,3343.4,3342.6,0.00341055]
[1641471407460,0.0023112,3343.4,3342.6,0.00341055]
[1641471407661,0.0023112,3343.4,3342.8,2.09541963]
[1641471407860,0.0023112,3343.4,3342.8,3.59120963]
[1641471408062,0.0023112,3343.4,3342.9,0.00170528]
[1641471408765,0.0023112,3343.4,3342.5,0.00397897]
[1641471408962,0.0023112,3343.4,3342.4,0.00454739]
[1641471409411,0.0023112,3343.4,3342.8,2.06261987]
[1641471409812,0.0023112,3343.4,3342.9,0.00170528]
[1641471410812,0.0023112,3343.4,3343.0,0.74794]
[1641471411711,0.0023112,3343.4,3342.9,0.00170528]
[1641471412512,5.0023112,3343.4,3342.9,0.00170528]
[1641471415974,5.0023112,3343.4,3342.9,2.17176682]
[1641471416377,5.0023112,3343.4,3343.0,0.00113685]
[1641471417031,5.0023112,3343.4,3342.9,0.00170528]
[1641471418631,5.0023112,3343.4,3342.8,0.0022737]
[1641471419231,4.92262422,3343.4,3342.8,0.0022737]
[1641471419437,6.04237091,3343.4,3342.8,0.00341054]
[1641471420034,6.79044091,3343.4,3342.8,0.00341054]
[1641471420234,6.79044091,3343.4,3342.4,2.54442371]
[1641471420235,1.11974669,3343.3,3342.5,0.00511581]
[1641471420671,2.11974669,3343.3,3342.5,0.00511581]
[1641471420872,2.11974669,3343.3,3342.4,0.00568423]
[1641471421174,2.98761897,3343.2,3342.1,0.0073895]
[1641471421375,0.43,3343.1,3342.1,0.0073895]
[1641471421571,0.74827,3342.8,3341.6,0.01023162]
[1641471421773,1.11974669,3342.7,3341.5,0.01080004]
[1641471421977,3.774081,3342.7,3341.5,0.01080004]
[1641471422171,1.0,3342.6,3341.5,0.01080004]
[1641471422373,1.0,3342.6,3341.4,0.01136847]
[1641471422774,1.11974669,3342.3,3341.4,0.01136847]
[1641471422973,1.11974669,3342.3,3341.7,1.49636]
[1641471423272,1.11974669,3342.3,3341.8,0.00909477]
[1641471423973,1.29771168,3342.3,3341.8,0.00909477]
[1641471424172,1.29771168,3342.3,3341.3,0.01193689]
[1641471424816,1.29771168,3342.3,3341.5,1.49649]
[1641471425016,0.74834,3342.2,3341.5,1.49649]
[1641471425216,0.74834,3342.2,3341.6,0.01023162]
[1641471425915,1.86808669,3342.2,3341.6,0.01023162]
[1641471426719,1.29771168,3342.1,3341.6,0.01023162]
[1641471428361,1.29771168,3342.1,3341.6,0.75857162]
[1641471428561,1.11974669,3342.0,3341.6,0.75857162]
[1641471428764,1.11974669,3342.0,3341.7,0.0096632]
[1641471430465,1.11974669,3342.1,3341.7,0.0096632]
[1641471432315,0.01162795,3342.0,3341.7,0.0096632]
[1641471433414,0.17796499,3341.9,3341.7,0.0096632]
[1641471436667,9.294e-05,3342.0,3341.8,7.1]
[1641471437065,9.294e-05,3342.0,3341.9,6.35852635]
[1641471437865,1.11974669,3342.7,3341.9,0.00852635]
[1641471438065,1.11974669,3342.7,3342.4,0.3]
[1641471438272,1.11974669,3342.8,3342.4,0.3]
[1641471438468,1.11974669,3342.8,3342.5,0.00511581]
[1641471439065,1.11974669,3342.8,3342.4,0.00568423]
[1641471439324,2.73723509,3343.3,3342.0,0.7747946]
[1641471439325,1.11974669,3343.0,3342.0,0.7747946]
[1641471439526,0.00170527,3342.7,3342.3,2.06347815]
[1641471439728,0.00170527,3342.7,3342.3,2.81147815]
[1641471439927,0.00113684,3342.6,3342.3,2.81147815]
[1641471440327,0.00284211,3342.9,3342.3,2.81147815]
[1641471440628,0.00227369,3342.8,3342.3,2.81147815]
[1641471441029,0.00227369,3342.8,3342.3,0.748]
[1641471441830,0.00227369,3342.8,3342.4,1.49599]
[1641471442230,0.00227369,3342.8,3342.1,0.00170527]
[1641471442633,0.00227369,3342.8,3341.8,0.00341054]
[1641471443058,1.11974669,3342.7,3341.8,0.00341054]
[1641471443475,0.00113684,3342.6,3341.8,0.7481516]
[1641471443658,0.00113684,3342.6,3342.2,0.74817]
[1641471444861,1.12088353,3342.6,3342.2,0.74817]
[1641471445558,0.00113684,3342.6,3342.2,0.74817]
[1641471446360,0.00113684,3342.6,3342.2,1.4962487]
[1641471447115,0.00113684,3342.6,3342.2,0.74817]
[1641471448917,0.00113684,3342.6,3342.2,1.04817]
[1641471449116,0.00113684,3342.6,3342.3,0.74812]
[1641471450018,0.00113684,3342.6,3342.2,0.74817]
[1641471450865,1.11974669,3342.5,3342.2,0.74817]
[1641471451469,1.12088353,3342.6,3342.2,0.74817]
[1641471452267,1.11974669,3342.5,3342.2,0.74817]
[1641471454912,1.12088353,3342.6,3342.2,0.74817]
[1641471455915,1.11974669,3342.5,3342.2,0.74817]
[1641471459163,0.00113684,3342.6,3342.2,0.74817]
[1641471459964,1.12088353,3342.6,3342.2,0.74817]
[1641471460565,1.12088353,3342.6,3342.4,0.748036]
[1641471460566,0.00113684,3342.6,3342.4,0.748036]
[1641471462324,0.00113684,3342.6,3342.3,0.74805]
[1641471462824,1.07088353,3342.8,3342.3,0.74805]
[1641471463026,1.07088353,3342.7,3342.3,0.74805]
[1641471463226,1.07088353,3342.7,3342.4,0.00113684]
[1641471463823,5.0,3342.6,3342.3,0.00170527]
[1641471464024,5.0,3342.6,3342.3,0.74980527]
[1641471464224,5.0,3342.6,3342.3,1.76225109]
[1641471464424,5.0,3342.6,3342.4,0.00113684]
[1641471464425,0.12686825,3342.5,3342.4,0.00113684]
[1641471465227,0.12686825,3342.5,3342.4,1.04913684]
[1641471465423,0.12686825,3342.5,3342.4,2.92329262]
[1641471465664,0.12686825,3342.5,3342.4,7.48576946]
[1641471465867,0.12686825,3342.5,3342.4,5.61161368]
[1641471466466,5.0,3342.6,3342.4,5.61161368]
[1641471466668,5.0,3342.6,3342.5,1.0]
[1641471466867,5.0,3342.6,3342.5,2.05125414]
[1641471467068,5.0,3342.6,3342.5,3.05125414]
[1641471467268,5.0,3342.6,3342.5,2.05125414]
[1641471467467,5.0,3342.6,3342.5,3.05125414]
[1641471467667,5.12684626,3342.6,3342.5,5.5563307]
[1641471468268,5.0,3342.6,3342.5,5.5563307]
[1641471468671,0.0022737,3343.0,3342.5,3.50507656]
[1641471468869,0.0022737,3343.0,3342.8,0.7479276]
[1641471469069,0.00170527,3342.9,3342.8,0.7479276]
[1641471469314,0.00170527,3342.9,3342.6,0.0396427]
[1641471469520,0.00170527,3342.9,3342.5,2.50507656]
[1641471469724,0.00113685,3342.8,3342.6,1.49586]
[1641471470121,0.13139008,3343.4,3342.6,1.49586]
[1641471470329,0.13139008,3343.4,3342.4,0.00113684]
[1641471470518,0.00397897,3343.3,3342.4,0.00113684]
[1641471470718,0.00397897,3343.3,3342.2,0.00227369]
[1641471470918,0.7481,3343.0,3342.2,0.00227369]
[1641471471226,2.18506044,3342.9,3342.2,0.00227369]